bitfinex/quotes_SOLUSD_20230401
["timestamp","ask_amount","ask_price","bid_price","bid_amount"]
[1680312199581,10.0,21.096,21.081,24.45857625]
[1680312201381,10.0,21.096,21.083,10.0]
[1680312201562,10.0,21.096,21.084,17.0]
[1680312208888,10.0,21.096,21.082,17.0]
[1680312209765,21.43,21.09,21.082,17.0]
[1680312213983,21.43,21.09,21.083,10.0]
[1680312214311,21.43,21.09,21.084,17.0]
[1680312215883,20.0,21.097,21.085,10.0]
[1680312216092,20.0,21.097,21.086,17.0]
[1680312216595,20.0,21.097,21.087,10.0]
[1680312216793,20.0,21.097,21.088,17.0]
[1680312223094,20.0,21.097,21.087,10.0]
[1680312223277,20.0,21.097,21.089,10.0]
[1680312223594,20.0,21.097,21.09,17.0]
[1680312224991,20.0,21.099,21.091,10.0]
[1680312225185,20.0,21.099,21.092,17.0]
[1680312225406,20.0,21.102,21.093,10.0]
[1680312225696,20.0,21.102,21.095,10.0]
[1680312225885,20.0,21.102,21.096,17.0]
[1680312228684,26.7,21.11,21.096,17.0]
[1680312229206,10.0,21.108,21.096,17.0]
[1680312229998,20.0,21.107,21.096,17.0]
[1680312230199,10.0,21.106,21.096,17.0]
[1680312230612,10.0,21.106,21.097,10.0]
[1680312230785,20.0,21.107,21.099,10.0]
[1680312230981,20.0,21.107,21.1,17.0]
[1680312232008,20.0,21.107,21.098,17.0]
[1680312234101,20.0,21.107,21.099,10.0]
[1680312234290,138.090879,21.109,21.1,17.0]
[1680312234291,20.0,21.108,21.1,17.0]
[1680312259929,20.0,21.108,21.1,16.90398015]
[1680312260227,10.0,21.107,21.1,16.90398015]
[1680312260628,20.0,21.108,21.1,16.90398015]
[1680312275239,20.0,21.108,21.101,10.0]
[1680312275436,20.0,21.108,21.102,17.0]
[1680312275628,13.92068581,21.114,21.102,17.0]
[1680312275832,10.0,21.116,21.102,17.0]
[1680312277840,23.90145789,21.116,21.102,17.0]
[1680312278028,10.0,21.116,21.102,17.0]
[1680312278949,10.0,21.116,21.103,10.0]
[1680312279240,24.50082223,21.118,21.104,17.0]
[1680312279446,10.0,21.116,21.105,10.0]
[1680312279646,10.0,21.116,21.106,17.0]
[1680312281846,10.0,21.116,21.104,17.0]
[1680312283277,10.0,21.116,21.105,10.0]
[1680312283442,10.0,21.116,21.106,17.0]
[1680312285553,20.0,21.117,21.107,10.0]
[1680312285856,20.0,21.118,21.108,17.0]
[1680312287734,10.0,21.117,21.108,17.0]
[1680312290047,20.0,21.118,21.108,17.0]
[1680312290937,20.0,21.118,21.109,10.0]
[1680312291260,10.0,21.118,21.11,17.0]
[1680312291449,10.0,21.116,21.11,17.0]
[1680312291843,10.0,21.116,21.108,17.0]
[1680312297132,20.0,21.117,21.108,17.0]
[1680312297869,10.0,21.116,21.106,17.0]
[1680312298069,10.0,21.116,21.105,10.0]
[1680312298242,10.0,21.116,21.106,17.0]
[1680312303317,10.0,21.116,21.102,7.71888242]
[1680312303557,21.38,21.11,21.1,10.0]
[1680312305865,21.38,21.11,21.102,10.0]
[1680312306065,21.38,21.11,21.103,17.0]
[1680312307359,10.0,21.116,21.103,17.0]
[1680312327681,10.0,21.116,21.103,17.0]
[1680312343388,10.0,21.116,21.098,238.2283]
[1680312343389,53.09,21.11,21.098,228.2283]
[1680312343591,10.0,21.109,21.098,228.2283]
[1680312343778,20.0,21.108,21.098,228.2283]
[1680312344175,10.0,21.107,21.098,228.2283]
[1680312344778,10.0,21.107,21.098,111.72]
[1680312345376,10.0,21.107,21.099,17.0]
[1680312350093,10.0,21.107,21.098,111.72]
[1680312371106,9.5,21.107,21.098,111.72]
[1680312377819,9.5,21.107,21.098,111.22]
[1680312382417,9.5,21.107,21.087,114.3671]
[1680312382615,21.41,21.1,21.088,116.9058]
[1680312382918,20.0,21.099,21.088,116.9058]
[1680312383214,10.0,21.098,21.088,116.9058]
[1680312383411,20.0,21.097,21.088,116.9058]
[1680312384121,10.0,21.096,21.088,116.9058]
[1680312385302,10.0,21.096,21.087,114.3671]
[1680312386011,7.08506488,21.095,21.078,111.5837]
[1680312386214,21.41,21.09,21.078,111.5837]
[1680312386518,10.0,21.088,21.078,111.5837]
[1680312386710,20.0,21.087,21.078,111.5837]
[1680312387217,10.0,21.086,21.078,111.5837]
[1680312390826,20.0,21.087,21.078,111.5837]
[1680312394912,20.0,21.089,21.08,10.0]
[1680312395126,20.0,21.093,21.081,17.0]
[1680312395430,20.0,21.093,21.082,10.0]
[1680312395609,20.0,21.093,21.083,17.0]
[1680312396125,20.0,21.093,21.084,10.0]
[1680312397432,20.0,21.093,21.083,17.0]
[1680312399830,27.08506488,21.093,21.083,17.0]
[1680312401726,10.0,21.092,21.08,10.0]
[1680312401911,20.0,21.091,21.081,17.0]
[1680312402227,10.0,21.09,21.081,17.0]
[1680312402422,20.0,21.089,21.081,17.0]
[1680312405927,20.0,21.089,21.08,10.0]
[1680312406234,20.0,21.089,21.077,10.0]
[1680312406532,20.0,21.089,21.079,10.0]
[1680312406829,20.0,21.089,21.08,17.0]
[1680312407830,10.0,21.088,21.08,17.0]
[1680312408008,10.0,21.088,21.079,10.0]
[1680312408210,20.0,21.087,21.08,17.0]
[1680312408410,20.0,21.087,21.079,10.0]
[1680312415421,10.0,21.088,21.079,10.0]
[1680312415623,20.0,21.087,21.079,10.0]
[1680312417432,20.0,21.087,21.077,10.0]
[1680312417630,20.0,21.087,21.078,17.0]
[1680312422444,20.0,21.087,21.079,10.0]
[1680312422626,20.0,21.089,21.08,17.0]
[1680312422831,20.0,21.089,21.081,10.0]
[1680312423136,20.0,21.089,21.082,17.0]
[1680312430047,18.979652,21.098,21.082,17.0]
[1680312430450,18.979652,21.098,21.083,10.0]
[1680312430656,18.979652,21.098,21.084,17.0]
[1680312431253,18.979652,21.098,21.085,4.8756593]
[1680312431458,5.2e-05,21.098,21.087,15.96014156]
[1680312431762,5.2e-05,21.098,21.088,20.0]
[1680312431944,5.2e-05,21.098,21.089,10.0]
[1680312432263,5.2e-05,21.098,21.09,17.0]
[1680312432461,5.2e-05,21.098,21.091,10.0]
[1680312432644,5.2e-05,21.098,21.092,17.0]
[1680312433060,5.2e-05,21.098,21.093,10.0]
[1680312433365,5.2e-05,21.098,21.095,10.0]
[1680312433565,5.2e-05,21.098,21.096,17.0]
[1680312434254,5.2e-05,21.098,21.097,10.0]
[1680312434453,5.2e-05,21.098,21.097,27.0]
[1680312435062,10.0,21.106,21.097,27.0]
[1680312435261,10.0,21.106,21.098,17.0]
[1680312436768,10.0,21.106,21.096,17.0]
[1680312438563,10.0,21.106,21.095,10.0]
[1680312439071,10.0,21.106,21.096,17.0]
[1680312443868,20.0,21.107,21.096,17.0]
[1680312446157,20.0,21.108,21.096,17.0]
[1680312446357,10.0,21.107,21.097,10.0]
[1680312446558,10.0,21.107,21.099,10.0]
[1680312446979,10.0,21.107,21.1,17.0]
[1680312447775,10.0,21.107,21.098,17.0]
[1680312448167,10.0,21.107,21.092,10.0]
[1680312449560,10.0,21.107,21.093,17.0]
[1680312450256,10.0,21.107,21.092,17.0]
[1680312454684,10.0,21.107,21.093,10.0]
[1680312454868,10.0,21.107,21.094,17.0]
[1680312458096,10.0,21.107,21.091,10.0]
[1680312458097,10.0,21.107,21.093,10.0]
[1680312458287,10.0,21.107,21.094,17.0]
[1680312458789,10.0,21.107,21.092,17.0]
[1680312459087,10.0,21.107,21.093,10.0]
[1680312459270,10.0,21.107,21.094,17.0]
[1680312462483,7.5,21.107,21.094,17.0]
[1680312477603,20.0,21.108,21.094,17.0]
[1680312477991,20.0,21.108,21.095,10.0]
[1680312478193,20.0,21.108,21.096,17.0]
[1680312483304,20.0,21.109,21.096,17.0]
[1680312483897,20.0,21.109,21.097,10.0]
[1680312484095,20.0,21.109,21.098,17.0]
[1680312484508,20.0,21.109,21.099,10.0]
[1680312484712,20.0,21.109,21.1,17.0]
[1680312485010,20.0,21.109,21.101,10.0]
[1680312485193,20.0,21.109,21.102,17.0]
[1680312489915,10.0,21.113,21.102,17.0]
[1680312490098,10.0,21.111,21.102,17.0]
[1680312490300,20.0,21.11,21.102,17.0]
[1680312494703,20.0,21.11,21.101,10.0]
[1680312495004,20.0,21.11,21.102,17.0]
[1680312497620,46.76,21.11,21.098,118.0463]
[1680312497821,10.0,21.109,21.098,118.0463]
[1680312498326,10.0,21.107,21.098,118.0463]
[1680312498824,10.0,21.107,21.099,17.0]
[1680312507323,10.0,21.107,21.094,112.6732]
[1680312508226,10.0,21.107,21.088,10.0]
[1680312508408,26.75,21.1,21.087,117.7312]
[1680312508611,10.0,21.098,21.087,117.7312]
[1680312508811,20.0,21.097,21.087,117.7312]
[1680312509628,10.0,21.096,21.087,117.7312]
[1680312509828,10.0,21.096,21.088,17.0]
[1680312514232,20.0,21.097,21.088,17.0]
[1680312525029,20.0,21.099,21.088,17.0]
[1680312525440,10.0,21.098,21.089,10.0]
[1680312525661,20.0,21.097,21.09,17.0]
[1680312527741,20.0,21.097,21.087,117.7312]
[1680312528331,10.0,21.096,21.087,117.7312]
[1680312528639,10.0,21.096,21.077,20.0]
[1680312528839,26.75,21.09,21.077,20.0]
[1680312529043,10.0,21.088,21.077,20.0]
[1680312529236,20.0,21.087,21.075,109.2986]
[1680312529428,10.0,21.086,21.075,109.2986]
[1680312530239,10.0,21.086,21.078,10.0]
[1680312530443,10.0,21.086,21.079,17.0]
[1680312533846,10.0,21.086,21.078,17.0]
[1680312535349,20.0,21.087,21.078,17.0]
[1680312536053,20.0,21.087,21.079,10.0]
[1680312536350,10.0,21.087,21.08,17.0]
[1680312538055,10.0,21.087,21.077,10.0]
[1680312538351,10.0,21.087,21.078,17.0]
[1680312538953,20.0,21.088,21.078,17.0]
[1680312539153,20.0,21.088,21.079,10.0]
[1680312539358,20.0,21.088,21.08,17.0]
[1680312539849,20.0,21.088,21.078,17.0]
[1680312540054,10.0,21.087,21.078,17.0]
[1680312543358,20.0,21.088,21.078,17.0]
[1680312544059,20.0,21.088,21.079,10.0]
[1680312544258,20.0,21.088,21.08,17.0]
[1680312545461,10.0,21.087,21.077,10.0]
[1680312545944,10.0,21.087,21.079,10.0]
[1680312546258,10.0,21.087,21.08,17.0]
[1680312548965,10.0,21.087,21.079,10.0]
[1680312549263,10.0,21.087,21.08,17.0]
[1680312552666,20.0,21.088,21.08,17.0]
[1680312556385,20.0,21.088,21.077,10.0]
[1680312556386,20.0,21.088,21.079,10.0]
[1680312556587,20.0,21.088,21.08,17.0]
[1680312557878,20.0,21.088,21.079,10.0]
[1680312558286,20.0,21.088,21.077,10.0]
[1680312558494,20.0,21.088,21.078,17.0]
[1680312559294,20.0,21.088,21.079,10.0]
[1680312560788,20.0,21.088,21.078,17.0]
[1680312561994,10.0,21.087,21.077,10.0]
[1680312562388,10.0,21.087,21.078,17.0]
[1680312562696,10.0,21.087,21.079,10.0]
[1680312566093,20.0,21.088,21.079,10.0]
[1680312566887,10.0,21.087,21.076,109.9855]
[1680312567291,10.0,21.087,21.078,10.0]
[1680312568596,10.0,21.087,21.076,109.9855]
[1680312573102,10.0,21.087,21.076,109.9855]
[1680312574595,33.66096937,21.087,21.076,109.9855]
[1680312574794,10.0,21.087,21.076,109.9855]
[1680312581507,10.0,21.087,21.07,10.0]
[1680312581814,21.44,21.08,21.072,10.0]
[1680312582002,21.44,21.08,21.074,10.0]
[1680312582898,21.44,21.08,21.072,10.0]
[1680312587921,21.44,21.08,21.074,10.0]
[1680312588102,21.44,21.08,21.076,10.0]
[1680312588302,10.0,21.087,21.077,17.0]
[1680312591513,44.00711181,21.088,21.077,17.0]
[1680312591714,20.0,21.088,21.078,10.0]
[1680312591919,20.0,21.087,21.079,17.0]
[1680312592415,20.0,21.089,21.08,10.0]
[1680312592618,20.0,21.089,21.082,10.0]
[1680312594108,20.0,21.089,21.083,17.0]
[1680312597019,20.0,21.089,21.08,10.0]
[1680312598931,20.0,21.089,21.078,10.0]
[1680312599222,10.0,21.088,21.078,10.0]
[1680312599427,20.0,21.087,21.078,10.0]
[1680312599629,20.0,21.087,21.08,10.0]
[1680312599809,20.0,21.087,21.081,17.0]
[1680312600125,20.0,21.089,21.082,10.0]
[1680312603120,20.0,21.089,21.083,17.0]
[1680312603529,20.0,21.089,21.084,10.0]
[1680312603719,20.0,21.089,21.085,17.0]
[1680312603915,20.0,21.089,21.084,10.0]
[1680312604112,21.3,21.09,21.085,17.0]
[1680312604312,20.0,21.089,21.085,17.0]
[1680312604527,20.0,21.091,21.085,17.0]
[1680312605424,20.0,21.094,21.085,17.0]
[1680312605811,19.0,21.094,21.085,17.0]
[1680312606012,26.08506488,21.094,21.085,17.0]
[1680312615436,24.05999185,21.096,21.085,17.0]
[1680312615635,114.0999,21.098,21.085,17.0]
[1680312616225,10.0,21.097,21.085,17.0]
[1680312617441,10.0,21.097,21.086,10.0]
[1680312617626,10.0,21.097,21.087,17.0]
[1680312618048,10.0,21.099,21.087,17.0]
[1680312618338,40.278104,21.1,21.088,10.0]
[1680312618533,40.278104,21.1,21.089,17.0]
[1680312618844,40.278104,21.1,21.09,10.0]
[1680312619135,18.978104,21.1,21.091,17.0]
[1680312619463,18.978104,21.1,21.092,10.0]
[1680312619639,18.978104,21.1,21.093,17.0]
[1680312619948,21.3,21.11,21.093,17.0]
[1680312619949,21.3,21.11,21.094,10.0]
[1680312620146,21.3,21.11,21.095,24.06036994]
[1680312620342,21.3,21.11,21.096,10.0]
[1680312620537,20.0,21.109,21.097,17.0]
[1680312621043,20.0,21.109,21.098,10.0]
[1680312621226,20.0,21.109,21.099,17.0]
[1680312621423,20.0,21.109,21.1,10.0]
[1680312621624,20.0,21.109,21.101,17.0]
[1680312621823,20.0,21.109,21.102,10.0]
[1680312622024,20.0,21.109,21.103,17.0]
[1680312622245,20.0,21.109,21.104,10.0]
[1680312622546,20.0,21.109,21.105,17.0]
[1680312622744,20.0,21.112,21.105,17.0]
[1680312623331,20.0,21.113,21.105,17.0]
[1680312623745,10.0,21.117,21.105,17.0]
[1680312623951,33.32013482,21.117,21.105,17.0]
[1680312624131,10.0,21.117,21.105,17.0]
[1680312625041,10.0,21.117,21.106,10.0]
[1680312625241,10.0,21.117,21.107,17.0]
[1680312626330,23.54851265,21.118,21.108,10.0]
[1680312626554,129.98949575,21.12,21.108,10.0]
[1680312626555,129.98949575,21.12,21.109,17.0]
[1680312626755,10.0,21.119,21.109,17.0]
[1680312627537,20.0,21.118,21.109,17.0]
[1680312627754,10.0,21.117,21.104,10.0]
[1680312627948,10.0,21.117,21.105,17.0]
[1680312628665,9.5,21.117,21.106,10.0]
[1680312628853,9.5,21.117,21.107,17.0]
[1680312631461,38.943,21.116,21.094,18.957646]
[1680312631669,10.0,21.109,21.095,10.0]
[1680312631847,20.0,21.108,21.095,10.0]
[1680312632048,10.0,21.107,21.095,10.0]
[1680312632750,10.0,21.107,21.097,10.0]
[1680312632961,10.0,21.107,21.098,17.0]
[1680312635647,10.0,21.107,21.094,18.957646]
[1680312635848,10.0,21.107,21.095,17.0]
[1680312636055,10.0,21.107,21.096,10.0]
[1680312636264,10.0,21.107,21.097,17.0]
[1680312637068,10.0,21.107,21.094,18.957646]
[1680312637568,10.0,21.105,21.094,18.957646]
[1680312637743,10.0,21.103,21.094,18.957646]
[1680312637946,20.0,21.102,21.094,18.957646]
[1680312638147,10.0,21.101,21.094,18.957646]
[1680312638375,46.69,21.1,21.094,18.957646]
[1680312638543,10.0,21.099,21.094,18.957646]
[1680312638968,10.0,21.097,21.083,10.0]
[1680312640463,10.0,21.097,21.085,10.0]
[1680312640666,10.0,21.097,21.086,17.0]
[1680312642074,10.0,21.097,21.087,10.0]
[1680312643171,10.0,21.097,21.085,10.0]
[1680312643374,10.0,21.097,21.086,17.0]
[1680312645458,10.0,21.097,21.083,10.0]
[1680312645659,10.0,21.097,21.083,9.5]
[1680312646886,17.08506488,21.097,21.075,7.08506488]
[1680312647065,36.04506488,21.097,21.079,10.0]
[1680312647265,36.04506488,21.097,21.081,10.0]
[1680312647778,10.0,21.095,21.081,10.0]
[1680312649780,26.69,21.09,21.081,10.0]
[1680312649970,10.0,21.089,21.081,10.0]
[1680312651476,26.69,21.09,21.081,10.0]
[1680312651964,10.0,21.089,21.081,10.0]
[1680312653374,10.0,21.089,21.079,10.0]
[1680312654279,10.0,21.089,21.08,17.0]
[1680312654492,10.0,21.089,21.081,10.0]
[1680312655579,26.69,21.09,21.081,10.0]
[1680312655768,26.69,21.09,21.083,10.0]
[1680312655969,26.69,21.09,21.084,17.0]
[1680312659695,10.0,21.093,21.084,17.0]
[1680312660190,10.0,21.096,21.084,17.0]
[1680312663487,17.08506488,21.097,21.084,17.0]
[1680312667902,17.08506488,21.097,21.085,10.0]
[1680312668093,10.0,21.097,21.086,17.0]
[1680312668599,134.0551,21.098,21.086,17.0]
[1680312668789,20.0,21.098,21.087,10.0]
[1680312668991,20.0,21.097,21.088,17.0]
[1680312669301,20.0,21.099,21.089,10.0]
[1680312669507,20.0,21.099,21.09,17.0]
[1680312672288,20.0,21.101,21.09,17.0]
[1680312672493,20.0,21.101,21.091,10.0]
[1680312672803,20.0,21.101,21.092,17.0]
[1680312680597,20.0,21.101,21.091,10.0]
[1680312680805,20.0,21.101,21.092,17.0]
[1680312681708,10.0,21.101,21.092,17.0]
[1680312681912,20.0,21.1,21.092,17.0]
[1680312685011,10.0,21.101,21.092,17.0]
[1680312685204,20.0,21.1,21.092,17.0]
[1680312688411,20.0,21.102,21.092,17.0]
[1680312698815,10.0,21.102,21.092,17.0]
[1680312699016,20.0,21.101,21.092,17.0]
[1680312703720,10.0,21.107,21.092,17.0]
[1680312704027,10.0,21.107,21.093,10.0]
[1680312704028,33.74559972,21.106,21.093,10.0]
[1680312704223,33.74559972,21.106,21.095,10.0]
[1680312704405,33.74559972,21.106,21.096,17.0]
[1680312705026,33.74559972,21.106,21.094,17.0]
[1680312705623,33.74559972,21.106,21.075,28.306532]
[1680312705832,33.74559972,21.106,21.087,113.1775]
[1680312705833,26.69,21.1,21.087,113.1775]
[1680312706026,18.958,21.099,21.087,113.1775]
[1680312706214,20.0,21.098,21.087,113.1775]
[1680312706416,10.0,21.097,21.08,123.99488416]
[1680312707818,10.0,21.097,21.082,17.0]
[1680312708124,10.0,21.097,21.083,10.0]
[1680312708327,10.0,21.097,21.085,10.0]
[1680312708628,10.0,21.097,21.086,17.0]
[1680312711827,129.6473,21.098,21.086,17.0]
[1680312712034,129.6473,21.098,21.087,10.0]
[1680312712337,129.6473,21.098,21.089,10.0]
[1680312712535,129.6473,21.098,21.09,17.0]
[1680312725539,10.0,21.097,21.09,17.0]
[1680312725738,10.0,21.097,21.088,17.0]
[1680312725939,10.0,21.097,21.091,17.0]
[1680312726140,10.0,21.097,21.088,17.0]
[1680312728550,10.0,21.097,21.08,123.99488416]
[1680312728735,10.0,21.097,21.078,10.0]
[1680312728936,28.96,21.097,21.078,10.0]
[1680312729442,118.8825,21.096,21.078,10.0]
[1680312729749,26.52,21.09,21.078,10.0]
[1680312730136,10.0,21.089,21.078,10.0]
[1680312730336,10.0,21.089,21.08,17.0]
[1680312732065,10.0,21.089,21.073,112.7268]
[1680312732249,20.0,21.088,21.073,112.7268]
[1680312732752,10.0,21.087,21.072,18.976929]
[1680312733254,26.72,21.08,21.072,18.976929]
[1680312733840,10.0,21.079,21.072,18.976929]
[1680312735145,26.72,21.08,21.072,18.976929]
[1680312738359,10.0,21.085,21.072,18.976929]
[1680312745065,10.0,21.085,21.069,10.0]
[1680312745243,10.0,21.085,21.07,17.0]
[1680312745444,10.0,21.085,21.071,10.0]
[1680312745662,10.0,21.085,21.072,17.0]
[1680312748957,116.3917,21.086,21.073,10.0]
[1680312749164,116.3917,21.086,21.074,17.0]
[1680312749663,108.3723,21.087,21.074,17.0]
[1680312749859,108.3723,21.087,21.075,10.0]
[1680312750263,20.0,21.088,21.076,17.0]
[1680312750452,20.0,21.091,21.076,17.0]
[1680312750648,20.0,21.091,21.077,10.0]
[1680312750969,20.0,21.091,21.078,17.0]
[1680312751258,20.0,21.091,21.079,10.0]
[1680312751475,20.0,21.091,21.08,17.0]
[1680312751660,20.0,21.091,21.081,10.0]
[1680312751865,20.0,21.092,21.082,17.0]
[1680312752055,20.0,21.092,21.083,10.0]
[1680312752255,20.0,21.092,21.084,17.0]
[1680312753266,20.0,21.095,21.084,17.0]
[1680312754149,10.0,21.094,21.084,17.0]
[1680312754350,20.0,21.093,21.084,17.0]
[1680312754600,231.4454,21.098,21.084,17.0]
[1680312754869,231.4454,21.098,21.085,10.0]
[1680312754870,20.0,21.097,21.085,10.0]
[1680312755169,20.0,21.097,21.087,10.0]
[1680312755369,20.0,21.097,21.088,17.0]
[1680312764455,18.979479,21.099,21.088,17.0]
[1680312764456,20.0,21.098,21.089,10.0]
[1680312764658,20.0,21.098,21.09,17.0]
[1680312767666,10.0,21.097,21.085,10.0]
[1680312769365,10.0,21.097,21.086,17.0]
[1680312769772,10.0,21.097,21.087,10.0]
[1680312775082,20.0,21.098,21.087,10.0]
[1680312775380,20.0,21.098,21.088,17.0]
[1680312784984,20.0,21.098,21.087,10.0]
[1680312785178,10.0,21.097,21.088,17.0]
[1680312788499,18.961,21.096,21.08,114.866]
[1680312788691,26.04606488,21.096,21.08,114.866]
[1680312788886,10.0,21.095,21.08,114.866]
[1680312789686,17.08506488,21.095,21.08,114.866]
[1680312789890,10.0,21.089,21.081,17.0]
[1680312790295,9.5,21.089,21.081,17.0]
[1680312792393,10.0,21.087,21.07,10.0]
[1680312792902,10.0,21.087,21.072,10.0]
[1680312795006,10.0,21.087,21.077,27.0]
[1680312795890,10.0,21.087,21.078,10.0]
[1680312797201,10.0,21.087,21.077,27.0]
[1680312799712,10.0,21.087,21.077,17.0]
[1680312802597,10.0,21.087,21.07,10.0]
[1680312803016,10.0,21.087,21.069,115.4175]
[1680312803207,17.08506488,21.087,21.07,10.0]
[1680312804211,134.76796488,21.087,21.07,10.0]
[1680312804406,134.76796488,21.087,21.071,17.0]
[1680312804605,134.76796488,21.087,21.072,10.0]
[1680312804801,134.76796488,21.087,21.073,17.0]
[1680312805609,134.76796488,21.087,21.072,10.0]
[1680312805920,134.76796488,21.087,21.07,10.0]
[1680312807006,134.76796488,21.087,21.071,17.0]
[1680312807220,134.76796488,21.087,21.07,10.0]
[1680312807419,10.0,21.085,21.07,10.0]
[1680312808520,10.0,21.085,21.072,10.0]
[1680312809014,10.0,21.085,21.066,14.42106719]
[1680312809210,10.0,21.085,21.065,24.62745889]
[1680312809211,18.977,21.078,21.065,20.0]
[1680312809417,20.0,21.077,21.065,20.0]
[1680312809620,10.0,21.075,21.065,20.0]
[1680312810206,17.08506488,21.075,21.065,20.0]
[1680312812019,17.08506488,21.075,21.057,10.0]
[1680312812219,10.0,21.069,21.059,9.5]
[1680312812526,10.0,21.069,21.06,17.0]
[1680312815524,10.0,21.069,21.06,17.0]
[1680312817331,26.72,21.07,21.06,17.0]
[1680312817927,26.72,21.07,21.061,10.0]
[1680312818430,26.72,21.07,21.062,17.0]
[1680312819530,26.72,21.07,21.06,17.0]
[1680312820132,10.0,21.074,21.06,17.0]
[1680312821533,10.0,21.074,21.061,10.0]
[1680312821733,10.0,21.074,21.062,17.0]
[1680312823622,114.3111,21.075,21.062,17.0]
[1680312824027,114.3111,21.075,21.063,10.0]
[1680312824217,114.3111,21.075,21.064,17.0]
[1680312824417,114.3111,21.075,21.065,10.0]
[1680312828323,10.0,21.074,21.065,10.0]
[1680312830330,114.3111,21.075,21.065,10.0]
[1680312830719,116.7081,21.076,21.065,10.0]
[1680312830934,20.0,21.077,21.067,10.0]
[1680312831522,26.72,21.08,21.068,17.0]
[1680312831723,20.0,21.079,21.068,17.0]
[1680312831934,10.0,21.078,21.068,17.0]
[1680312832138,20.0,21.077,21.068,17.0]
[1680312832337,10.0,21.076,21.068,17.0]
[1680312834439,20.0,21.077,21.068,17.0]
[1680312840937,20.0,21.078,21.068,17.0]
[1680312843857,20.0,21.078,21.069,10.0]
[1680312847041,20.0,21.078,21.07,17.0]
[1680312847246,20.0,21.079,21.07,17.0]
[1680312847448,20.0,21.08,21.071,10.0]
[1680312847740,20.0,21.08,21.073,10.0]
[1680312849054,20.0,21.08,21.071,10.0]
[1680312849234,20.0,21.08,21.072,17.0]
[1680312852750,20.0,21.08,21.071,10.0]